bitfinex-derivatives/quotes_ETHF0:USTF0_20250106
["timestamp","ask_amount","ask_price","bid_price","bid_amount"]
[1736130163426,3.2078,3669.7,3669.5,0.24533]
[1736130164030,3.2078,3669.7,3668.8,3.2078]
[1736130164339,0.24534,3669.4,3669.1,0.24535]
[1736130164632,3.2078,3669.7,3669.2,0.24534]
[1736130164633,0.24532,3669.6,3669.2,0.24534]
[1736130164844,3.2078,3669.7,3668.6,3.9805653]
[1736130165033,3.2078,3669.7,3668.7,40.8]
[1736130165234,0.24532,3669.6,3669.2,0.24534]
[1736130165434,3.2078,3669.7,3669.2,0.24534]
[1736130165635,0.24533,3669.5,3669.2,0.24535]
[1736130165834,3.2078,3669.7,3668.9,2.1728653]
[1736130166339,3.2078,3669.7,3669.6,0.24532]
[1736130167435,3.2078,3669.7,3669.5,0.24532]
[1736130168039,3.2078,3669.7,3669.2,2.1728653]
[1736130168443,0.24532,3669.6,3669.3,0.24533]
[1736130168742,3.45311,3669.7,3669.4,0.24533]
[1736130168942,3.2078,3669.7,3668.6,42.9728653]
[1736130169135,0.24533,3669.6,3669.2,0.24534]
[1736130169331,0.24532,3669.6,3669.2,0.24534]
[1736130169540,0.24532,3669.6,3669.3,0.24534]
[1736130169739,3.2078,3669.7,3668.6,42.9728653]
[1736130170338,3.2078,3669.7,3669.2,0.24535]
[1736130170643,0.24533,3669.5,3669.2,0.24535]
[1736130170831,0.24532,3669.6,3668.7,0.24538]
[1736130171035,0.24532,3669.6,3669.3,0.24533]
[1736130171237,0.24532,3669.6,3669.4,0.24533]
[1736130171441,3.45312,3669.7,3669.4,0.24533]
[1736130171650,3.2078,3669.7,3668.9,2.1728653]
[1736130171841,0.24534,3669.4,3669.1,0.24535]
[1736130172238,3.2078,3669.7,3668.6,42.9728653]
[1736130172447,0.24532,3669.6,3669.3,0.24534]
[1736130172646,0.24532,3669.6,3669.4,0.24533]
[1736130172843,3.2078,3669.7,3669.6,0.24532]
[1736130173142,3.2078,3669.7,3668.9,2.1728653]
[1736130173447,0.24537,3668.9,3668.5,0.24539]
[1736130173640,0.24537,3668.8,3668.6,0.24539]
[1736130174146,3.45317,3668.9,3668.6,0.24539]
[1736130174340,3.45317,3668.9,3668.1,1.8214]
[1736130174341,3.2078,3668.9,3668.1,1.8214]
[1736130174542,0.24539,3668.6,3668.3,0.2454]
[1736130174741,0.24539,3668.6,3668.1,1.8214]
[1736130174742,0.24538,3668.8,3668.2,0.24541]
[1736130174941,3.2078,3668.9,3668.3,2.1728653]
[1736130175143,3.2078,3668.9,3668.8,0.24537]
[1736130175744,1.7067,3669.3,3669.2,0.24535]
[1736130175745,3.2078,3669.3,3669.2,0.24535]
[1736130180551,0.24532,3669.7,3669.0,1.7258]
[1736130180745,0.24532,3669.7,3669.4,0.24533]
[1736130181346,3.2078,3669.8,3668.7,4.31335746]
[1736130181550,3.2078,3669.4,3668.4,3.0645]
[1736130181745,3.2078,3669.4,3668.4,1.8695]
[1736130182057,3.2078,3668.6,3667.8,3.2078]
[1736130182355,3.2078,3668.6,3668.1,0.24542]
[1736130182356,0.24539,3668.5,3668.1,0.24542]
[1736130182659,5.3898,3668.5,3668.3,0.2454]
[1736130182853,5.63519,3668.5,3668.1,0.24542]
[1736130183157,5.63519,3668.5,3668.2,0.24541]
[1736130183350,0.2454,3668.4,3668.0,0.24542]
[1736130183551,0.2454,3668.4,3668.1,0.24542]
[1736130183747,5.3898,3668.5,3667.5,2.56785746]
[1736130183947,0.24542,3668.1,3667.7,0.24544]
[1736130184143,3.2078,3668.2,3667.4,1.8695]
[1736130184354,3.2078,3668.2,3667.9,0.24543]
[1736130184660,3.2078,3668.2,3667.0,1.6833354]
[1736130184661,0.24543,3668.0,3667.0,0.2728]
[1736130184953,3.2078,3667.6,3667.5,0.24546]
[1736130186546,3.2078,3667.6,3667.1,1.7926]
[1736130186755,3.2078,3667.6,3667.5,0.24546]
[1736130189951,3.2078,3667.6,3667.1,1.7926]
[1736130190248,3.2078,3667.6,3666.8,44.0078]
[1736130190455,3.2078,3667.6,3667.4,0.24546]
[1736130190850,3.2078,3667.6,3666.9,1.8125]
[1736130191055,3.2078,3667.6,3667.5,0.24546]
[1736130191247,3.20320981,3667.6,3667.5,0.24546]
[1736130191763,3.20320981,3667.6,3666.9,1.8125]
[1736130191966,3.20320981,3667.6,3667.5,0.24546]
[1736130193057,3.20320981,3667.6,3666.9,1.8125]
[1736130193258,0.24547,3667.5,3666.9,1.8125]
[1736130193459,0.24547,3667.5,3667.1,0.24548]
[1736130194059,6.75460981,3667.6,3666.9,1.8125]
[1736130194362,6.75460981,3667.6,3667.3,0.24547]
[1736130194560,6.75460981,3667.6,3666.8,44.0078]
[1736130194858,3.20320981,3667.6,3667.5,0.24546]
[1736130196159,3.45323,3668.0,3667.6,0.24545]
[1736130196464,3.2078,3668.0,3667.8,0.24544]
[1736130196664,3.2078,3668.0,3667.9,0.24543]
[1736130196962,3.2078,3668.0,3667.8,0.24543]
[1736130197157,3.2078,3668.0,3667.9,0.24543]
[1736130197763,3.2078,3668.0,3667.8,0.24544]
[1736130197963,3.2078,3668.0,3667.2,3.2078]
[1736130198161,3.2078,3668.0,3667.8,0.24544]
[1736130198360,3.2078,3668.0,3667.9,0.24543]
[1736130199059,3.2078,3668.4,3668.3,0.24541]
[1736130199460,2.12986592,3668.5,3668.3,2.56785746]
[1736130199768,2.12986592,3668.5,3668.4,0.2454]
[1736130200766,2.12986592,3668.5,3668.4,41.0454]
[1736130200967,3.2078,3668.8,3668.7,0.24538]
[1736130204173,5.33766592,3669.4,3669.2,0.24534]
[1736130204472,5.33766592,3669.4,3668.9,2.17395445]
[1736130204767,3.2078,3669.4,3669.2,0.24534]
[1736130205159,3.2078,3669.4,3668.7,1.7763]
[1736130205472,3.2078,3669.4,3668.4,40.8]
[1736130205473,3.2078,3669.4,3669.1,0.24535]
[1736130205668,3.2078,3669.4,3668.5,1.7763]
[1736130205971,3.2078,3669.4,3668.9,0.24537]
[1736130205972,0.24534,3669.3,3668.9,0.24537]
[1736130206175,0.24534,3669.3,3668.8,0.24537]
[1736130206374,2.17395445,3669.0,3668.3,3.2078]
[1736130206670,2.17395445,3669.0,3668.1,0.24542]
[1736130206671,3.2078,3668.4,3668.1,0.24542]
[1736130206870,3.513,3668.3,3668.1,0.24542]
[1736130207165,3.513,3668.3,3667.6,1.7763]
[1736130207166,3.2078,3668.4,3668.3,0.24541]
[1736130207367,1.7254,3668.9,3668.0,2.17395445]
[1736130207368,4.9064,3668.8,3668.0,2.17395445]
[1736130207567,4.9064,3668.8,3668.7,0.24538]
[1736130207765,4.9064,3668.8,3668.6,0.24538]
[1736130208466,4.9064,3668.8,3668.0,2.17395445]
[1736130208668,0.24539,3668.6,3668.2,0.24541]
[1736130208871,0.2454,3668.5,3668.1,0.24542]
[1736130209465,0.2454,3668.5,3667.7,2.17395445]
[1736130209669,4.9064,3668.8,3668.2,0.24541]
[1736130209670,0.24539,3668.6,3668.2,0.24541]
[1736130209867,7.03626592,3668.8,3668.2,0.24541]
[1736130210063,3.2078,3668.4,3667.7,2.17395445]
[1736130210270,3.2078,3668.4,3668.1,0.24541]
[1736130210764,3.2078,3668.4,3667.7,42.97395445]
[1736130210966,3.2078,3668.4,3668.1,0.24542]
[1736130212172,3.2078,3668.4,3667.3,3.2078]
[1736130212173,5.38175445,3668.4,3667.3,3.2078]
[1736130212372,3.2078,3668.0,3667.4,0.24546]
[1736130212573,3.2078,3668.0,3667.0,1.7893]
[1736130212574,2.17395445,3667.8,3666.6,6.24922654]
[1736130212770,0.24547,3667.3,3666.9,0.2455]
[1736130212965,0.24549,3667.1,3666.8,0.41566601]
[1736130213276,3.45329,3667.1,3666.9,0.41566601]
[1736130213467,3.2078,3667.1,3666.9,0.41566601]
[1736130213671,3.2078,3667.1,3667.0,0.41566601]
[1736130213876,3.2078,3667.1,3666.0,2.17395445]
[1736130214077,3.2078,3667.1,3666.6,0.24552]
[1736130214278,0.24549,3667.0,3666.6,0.24552]
[1736130214479,2.03479,3667.0,3666.6,0.24552]
[1736130214683,2.03479,3667.0,3666.5,0.24552]
[1736130214879,2.03479,3667.0,3666.6,0.24552]
[1736130215778,2.03479,3667.0,3666.0,2.17395445]
[1736130215972,0.2455,3666.9,3666.5,0.24552]
[1736130216172,2.03479,3667.0,3666.0,2.17395445]
[1736130216572,2.03479,3667.0,3666.6,0.24552]
[1736130217176,2.03479,3667.0,3666.0,2.17395445]
[1736130217177,2.03479,3667.0,3666.5,0.24552]
[1736130217375,2.03479,3667.0,3666.0,2.17395445]
[1736130217581,2.03479,3667.0,3666.5,0.24552]
[1736130217879,0.2455,3666.9,3666.5,0.24552]
[1736130218485,0.2455,3666.9,3666.1,40.8]
[1736130218878,0.2455,3666.9,3666.5,0.24553]
[1736130219278,1.7893,3667.0,3666.1,40.8]
[1736130219479,2.0348,3667.0,3666.6,0.24552]
[1736130220081,2.0348,3667.0,3666.5,0.24552]
[1736130220990,2.0348,3667.0,3666.6,0.24552]
[1736130221186,1.7893,3667.0,3666.1,40.8]
[1736130221485,3.2078,3666.6,3666.2,0.24555]
[1736130221693,3.2078,3666.6,3665.9,0.24556]
[1736130221988,2.17395445,3666.0,3665.1,7.65020387]
[1736130222188,3.2078,3665.8,3665.4,0.2456]
[1736130222388,3.2078,3665.8,3665.2,0.24561]
[1736130222593,3.2078,3665.8,3665.1,7.37740387]
[1736130222783,3.2078,3665.8,3665.7,0.24558]
[1736130222986,3.2078,3666.2,3666.1,0.24555]
[1736130223185,3.2078,3666.2,3665.3,2.17395445]
[1736130223390,3.2078,3666.2,3665.6,0.24558]
[1736130223598,1.7253,3666.1,3665.6,0.24558]
[1736130223887,1.7253,3666.1,3665.3,2.17395445]
[1736130224094,1.7253,3666.1,3665.7,0.24558]
[1736130224289,1.7253,3666.1,3665.3,2.17395445]
[1736130224495,1.7253,3666.1,3665.7,0.24558]
[1736130224687,1.7253,3666.1,3665.3,2.17395445]
[1736130224886,3.2078,3666.2,3666.1,0.24555]
[1736130225592,3.2078,3666.2,3666.1,41.04555]
[1736130225899,2.12986592,3666.6,3666.4,0.24553]
[1736130226092,2.12986592,3666.6,3666.1,40.8]
[1736130226396,2.12986592,3666.6,3666.4,0.24553]
[1736130226595,3.2078,3666.8,3666.4,0.24553]
[1736130226794,3.5973,3667.1,3666.8,0.24551]
[1736130226991,1.872,3667.1,3667.0,0.24549]
[1736130227286,3.2078,3667.2,3667.1,0.24549]
[1736130227491,2.12986592,3667.3,3667.1,0.24549]
[1736130227794,2.12986592,3667.3,3666.9,1.8436]
[1736130227795,2.12986592,3667.3,3666.9,2.0891]
[1736130228001,3.2078,3667.2,3666.5,3.97755445]
[1736130228298,3.2078,3667.2,3666.7,0.24551]
[1736130228498,3.2078,3667.2,3666.4,3.2078]
[1736130228499,0.2455,3666.9,3666.4,3.45333]
[1736130228699,4.9964,3666.8,3666.4,0.24553]
[1736130229001,0.24551,3666.7,3666.2,2.07324]
[1736130229193,6.6944,3666.8,3666.4,0.24553]
[1736130230302,6.6944,3666.8,3666.6,0.24552]
[1736130230303,4.9964,3666.8,3666.6,0.24552]
[1736130230491,1.99249,3667.1,3666.7,0.24551]
[1736130230492,1.747,3667.1,3666.7,0.24551]
[1736130230804,1.747,3667.1,3666.9,0.2455]
[1736130231203,1.747,3667.1,3666.5,2.17395445]
[1736130231500,1.747,3667.1,3666.7,0.24551]
[1736130231700,3.2078,3667.2,3666.5,2.17395445]
[1736130232003,3.2078,3667.2,3667.0,0.24549]
[1736130232203,3.2078,3667.2,3666.9,0.2455]
[1736130233602,0.24549,3667.1,3666.7,0.24551]
[1736130233901,3.45328,3667.2,3666.8,0.24551]
[1736130234100,3.45328,3667.2,3666.5,2.17395445]
[1736130234101,0.2455,3667.0,3666.5,0.24553]
[1736130234298,0.2455,3666.9,3666.5,0.24553]
[1736130234494,0.2455,3666.9,3665.3,0.61402]
[1736130234495,3.2078,3666.8,3665.9,3.2078]
[1736130234693,3.2078,3666.4,3666.0,0.24556]
[1736130234893,3.2078,3666.4,3665.5,0.24559]
[1736130235096,1.7841,3666.3,3665.5,0.24559]
[1736130235297,1.7841,3666.3,3665.6,0.24559]
[1736130235599,0.24556,3666.1,3665.6,0.24559]
[1736130236101,0.24556,3666.0,3665.4,5.0085]
[1736130236298,3.2078,3665.8,3665.4,2.0463]
[1736130236797,3.2078,3665.8,3665.4,1.8007]
[1736130237003,0.24557,3665.9,3665.4,2.0463]
[1736130237200,0.24556,3666.0,3665.4,1.8007]
[1736130237404,0.24556,3666.0,3665.5,0.24559]
[1736130237605,0.24557,3665.9,3665.4,2.0463]
[1736130237807,0.24557,3665.9,3665.4,2.0313]
[1736130238201,3.2078,3666.2,3665.4,1.7857]
[1736130238508,3.45338,3665.8,3665.4,1.7857]
[1736130239101,3.45338,3665.8,3665.3,0.24561]
[1736130239305,3.5544,3665.7,3664.6,2.17395445]
[1736130239604,0.24561,3665.3,3664.7,0.24564]
[1736130239807,0.24561,3665.3,3664.8,0.24564]
[1736130240107,0.24561,3665.3,3664.8,0.23064]
[1736130240309,0.24562,3665.1,3664.4,0.24567]
[1736130240604,0.24565,3664.7,3664.3,3.2078]
[1736130240804,3.2078,3665.0,3664.3,3.2078]
[1736130241002,3.2078,3665.0,3664.3,5.38175445]
[1736130241308,3.2078,3665.0,3664.6,0.24565]
[1736130241709,3.2078,3665.0,3664.3,5.38175445]
[1736130242208,0.24563,3664.9,3664.4,0.24567]
[1736130242408,0.24563,3664.9,3664.4,0.23067]
[1736130242605,0.24563,3664.9,3664.3,3.45347]
[1736130242906,2.11783,3664.9,3664.3,3.45347]
[1736130243110,2.11783,3664.9,3664.4,0.24566]
[1736130243407,1.8722,3664.9,3664.4,0.24567]
[1736130243611,1.8722,3664.9,3664.6,0.24565]
[1736130244009,0.24564,3664.8,3664.3,3.2078]
[1736130244209,0.24564,3664.8,3664.3,3.45347]
[1736130244410,1.98214,3664.8,3664.3,3.45347]
[1736130244805,1.98214,3664.8,3664.3,3.2078]
[1736130245007,1.98214,3664.8,3664.4,0.24567]
[1736130245306,1.7365,3664.8,3664.4,0.24567]
[1736130245899,1.7365,3664.8,3664.3,3.2078]
[1736130246105,3.45346,3664.6,3664.1,0.24568]
[1736130246512,3.2078,3664.6,3663.8,3.2078]
[1736130246705,3.45346,3664.6,3663.8,3.2078]
[1736130246911,3.2078,3664.6,3663.8,5.38175445]
[1736130247203,3.2078,3664.6,3663.8,3.2078]
[1736130247408,3.45345,3664.6,3663.9,0.2457]
[1736130247607,3.45345,3664.6,3664.1,0.24568]
[1736130247808,3.2078,3664.6,3663.8,3.2078]
[1736130248112,3.2078,3664.6,3664.3,0.24567]
[1736130248506,3.2078,3664.6,3664.5,0.24566]
[1736130249007,3.2078,3664.6,3664.3,0.24567]
[1736130249415,0.24565,3664.7,3664.3,0.24567]
[1736130250307,1.98214,3664.8,3664.4,0.24566]
[1736130251515,1.7365,3664.8,3664.0,2.17395445]
[1736130251717,1.7365,3664.8,3664.5,0.24566]
[1736130252919,1.98214,3664.8,3664.5,0.24566]
[1736130253112,1.7365,3664.8,3664.1,0.24569]
[1736130253315,1.98214,3664.8,3664.5,0.24566]
[1736130253616,1.8722,3664.9,3664.7,2.17395445]
[1736130253813,3.2078,3665.0,3664.7,2.17395445]
[1736130254117,3.45343,3665.0,3664.7,0.24564]
[1736130254512,3.2078,3665.0,3664.4,2.17395445]
[1736130254713,3.2078,3665.0,3664.9,0.24563]
[1736130255311,3.2078,3665.0,3664.8,0.24564]
[1736130255518,3.2078,3665.0,3664.9,0.24563]
[1736130257211,3.2078,3665.4,3664.7,2.17395445]
[1736130257415,3.2078,3665.4,3665.3,0.24561]
[1736130257616,1.8495,3665.7,3665.6,0.24559]
[1736130258117,2.37541592,3666.1,3665.6,2.17395445]
[1736130258118,2.12986592,3666.1,3665.6,2.17395445]
[1736130258311,2.12986592,3666.1,3666.0,0.24556]
[1736130258519,3.2078,3666.2,3665.6,2.17395445]
[1736130258721,3.2078,3666.2,3666.1,0.24555]
[1736130259207,0.24555,3666.1,3665.7,0.24557]
[1736130259410,3.2078,3666.2,3665.3,2.17395445]
[1736130259618,3.45335,3666.2,3665.9,0.24557]
[1736130259821,0.24556,3666.1,3665.8,0.24557]
[1736130260011,3.45335,3666.2,3665.8,0.24557]
[1736130260208,3.2078,3666.2,3665.6,2.17395445]
[1736130260412,3.2078,3666.2,3666.1,0.24555]
[1736130261015,3.2078,3666.7,3665.9,2.17395445]
[1736130261316,3.2078,3666.7,3665.2,2.32514]
[1736130261317,3.2078,3666.3,3665.6,2.17395445]
[1736130261514,3.2078,3666.3,3666.0,0.24555]
[1736130261818,3.2078,3666.3,3665.6,2.17395445]
[1736130262017,3.45334,3666.3,3665.9,0.24556]
[1736130262218,3.2078,3666.3,3665.9,0.24556]
[1736130262418,3.45334,3666.3,3665.8,0.24557]
[1736130262613,3.45334,3666.3,3665.6,2.17395445]
[1736130262816,3.45334,3666.3,3665.9,0.24556]
[1736130263224,3.2078,3666.3,3665.6,2.17395445]
[1736130263522,3.2078,3666.3,3665.7,0.24558]
[1736130263820,3.45334,3666.3,3665.9,0.24556]
[1736130264726,3.2078,3666.3,3665.7,0.24558]
[1736130265022,3.45334,3666.3,3665.9,0.24557]
[1736130265415,3.2078,3666.3,3666.0,0.24556]
[1736130265620,3.45334,3666.3,3665.9,0.24556]
[1736130267715,3.2078,3666.3,3665.6,2.17395445]
[1736130267917,3.2078,3666.3,3666.0,0.24556]
[1736130268118,3.2078,3666.3,3665.5,0.24559]
[1736130268119,0.24556,3666.0,3665.5,0.24559]
[1736130268318,0.24561,3665.3,3664.7,0.24564]
[1736130268518,0.24562,3665.1,3664.7,0.24564]
[1736130268712,0.24561,3665.3,3664.9,0.24563]
[1736130269411,0.2456,3665.4,3665.0,0.24562]
[1736130269616,3.2078,3665.5,3664.6,3.2078]
[1736130269617,3.2078,3665.5,3664.8,2.17395445]
[1736130269817,2.37543592,3665.8,3665.1,2.17395445]
[1736130270014,0.24559,3665.6,3665.2,0.24561]
[1736130270221,2.12986592,3665.8,3664.8,2.17395445]
[1736130270623,2.12986592,3665.8,3665.1,2.17395445]
[1736130270919,0.24558,3665.7,3665.3,0.2456]
[1736130271129,8.6594,3665.9,3665.4,0.24559]
[1736130271327,0.24558,3665.7,3665.4,0.24559]
[1736130272024,0.24557,3665.8,3665.2,0.24561]
[1736130272214,0.24559,3665.6,3665.3,0.2456]
[1736130273622,0.24559,3665.6,3664.8,2.17395445]
[1736130273834,0.24558,3665.7,3665.4,0.2456]
[1736130274023,8.6594,3665.9,3665.4,0.2456]
[1736130274526,0.24559,3665.6,3664.8,2.17395445]
[1736130274828,0.24559,3665.6,3665.2,0.24561]
[1736130275026,8.6594,3665.9,3665.2,0.24561]
[1736130275219,0.2456,3665.5,3665.2,0.24561]
[1736130275421,0.24558,3665.7,3665.4,0.2456]
[1736130275827,0.24558,3665.7,3664.8,2.17395445]
[1736130276027,0.24558,3665.7,3665.3,0.2456]
[1736130276430,8.6594,3665.9,3665.3,0.2456]
[1736130276631,0.2456,3665.5,3665.2,0.24561]
[1736130280023,0.2456,3665.5,3665.3,0.2456]
[1736130280224,2.37546592,3665.5,3665.3,0.2456]
[1736130280733,2.12986592,3665.5,3665.3,0.2456]
[1736130281323,2.12986592,3665.5,3665.2,0.24561]
[1736130281523,2.37545592,3665.5,3665.2,0.24561]
[1736130281726,12.89212605,3665.9,3664.8,2.17395445]
[1736130281727,2.12986592,3665.6,3664.8,2.17395445]
[1736130282024,3.2078,3665.5,3664.7,0.24564]
[1736130282324,0.24563,3665.0,3664.7,0.24564]
[1736130283131,2.37549592,3665.0,3664.7,0.24564]
[1736130284032,2.12986592,3665.0,3664.6,3.2078]
[1736130284232,2.12986592,3665.1,3664.6,3.2078]
[1736130284634,2.12986592,3665.1,3664.9,0.24563]
[1736130284829,2.12986592,3665.1,3664.8,2.17395445]
[1736130285128,2.12986592,3665.1,3665.0,0.24562]
[1736130285525,2.12986592,3665.4,3665.3,0.2456]
[1736130286520,3.2078,3665.5,3665.4,0.2456]
[1736130286722,3.2078,3665.5,3665.4,2.41955445]
[1736130286928,2.12986592,3665.6,3665.5,0.24559]
[1736130287129,2.12986592,3665.6,3665.5,2.10989]
[1736130287436,2.12986592,3665.6,3665.5,3.91669]
[1736130287932,3.17043039,3665.7,3665.6,0.24558]
[1736130288134,2.12986592,3666.2,3665.5,6.8789]
[1736130288331,2.12986592,3666.2,3666.1,0.24555]
[1736130289333,5.33766592,3666.4,3665.7,2.17395445]
[1736130289526,5.33766592,3666.4,3666.0,2.17395445]
[1736130289731,5.33766592,3666.4,3666.2,0.24554]
[1736130289926,5.33766592,3666.4,3666.0,2.17395445]
[1736130290330,5.33766592,3666.4,3666.2,0.24554]
[1736130290531,3.2078,3666.4,3666.2,0.24554]
[1736130290728,3.2078,3666.4,3666.0,2.17395445]
[1736130290936,3.2078,3666.4,3666.3,0.24554]
[1736130292333,2.12986592,3666.7,3666.3,2.17395445]
[1736130292632,2.12986592,3666.7,3666.0,2.17395445]
[1736130292834,2.37537592,3666.7,3666.3,0.24553]
[1736130293026,0.24551,3666.7,3666.3,0.24553]
[1736130293834,0.24551,3666.7,3666.4,0.24553]
[1736130294232,2.37537592,3666.7,3666.3,0.24553]
[1736130294737,2.12986592,3666.7,3666.4,0.24553]
[1736130294934,2.12986592,3666.7,3666.0,2.17395445]
[1736130295140,2.12986592,3666.7,3666.4,0.24553]
[1736130295336,2.12986592,3666.7,3666.0,2.17395445]
[1736130295536,0.24552,3666.6,3666.2,0.24554]
[1736130295733,2.12986592,3666.7,3666.0,2.17395445]
[1736130296633,2.12986592,3666.7,3666.5,0.24552]
[1736130296838,2.12986592,3666.7,3666.6,2.41947445]
[1736130297937,2.12986592,3667.1,3667.0,0.24549]
[1736130299441,6.37823039,3667.3,3666.4,3.6268]
[1736130299442,5.33766592,3667.3,3666.7,0.24551]
[1736130299733,5.33766592,3667.3,3666.6,2.17395445]
[1736130299734,5.33766592,3667.3,3667.0,0.24549]
[1736130300135,5.33766592,3667.3,3667.1,0.24548]
[1736130300532,5.33766592,3667.3,3666.4,3.6268]
[1736130300743,3.4533,3666.9,3666.5,0.24552]
[1736130301238,1.7771,3666.8,3666.5,0.24552]
[1736130301436,1.7771,3666.8,3666.4,1.7569]
[1736130301943,1.7771,3666.8,3666.5,0.24552]
[1736130302143,3.95105445,3666.8,3665.8,0.24557]
[1736130302343,0.24555,3666.2,3665.7,3.45337]
[1736130302538,2.10545,3666.1,3665.7,3.45337]
[1736130303038,1.8599,3666.1,3665.7,3.2078]
[1736130303341,1.8599,3666.1,3665.8,0.24557]
[1736130303540,2.12986592,3666.2,3666.0,0.24556]
[1736130303743,2.12986592,3666.2,3665.7,5.38175445]
[1736130303938,2.12986592,3666.2,3666.1,0.24555]
[1736130304845,3.2078,3666.4,3665.8,1.7576]
[1736130305043,3.2078,3666.4,3666.3,0.24554]
[1736130306547,3.2078,3666.7,3666.6,0.24552]
[1736130306746,2.12986592,3666.8,3666.7,0.24551]
[1736130307149,3.17043039,3666.9,3666.3,2.17395445]
[1736130307348,3.17043039,3666.9,3666.8,0.2455]
[1736130308846,2.38306696,3667.4,3666.7,1.7224]
[1736130309048,0.24547,3667.3,3666.9,0.24549]
[1736130309348,2.38306696,3667.4,3667.0,0.24549]
[1736130309745,2.13759696,3667.4,3666.7,1.7224]
[1736130309945,2.13759696,3667.4,3666.5,3.2078]
[1736130309946,0.24547,3667.3,3666.5,3.45332]
[1736130310146,0.24549,3667.0,3666.6,0.24552]
[1736130310840,0.24549,3667.0,3666.5,3.2078]
[1736130310841,0.24548,3667.2,3666.8,0.2455]
[1736130311047,2.13759696,3667.4,3666.8,0.2455]
[1736130311350,0.24549,3667.1,3666.8,0.2455]
[1736130312245,2.13759696,3667.2,3666.6,2.17395445]
[1736130312444,2.13759696,3667.2,3666.9,0.24549]
[1736130312748,0.24547,3667.3,3666.9,0.24549]
[1736130313647,0.24547,3667.3,3666.8,0.2455]
[1736130313847,2.13759696,3667.4,3666.6,2.17395445]
[1736130314047,3.5986,3667.5,3667.4,0.24546]
[1736130314249,3.5986,3667.5,3667.3,2.17395445]
[1736130314250,3.84639696,3667.6,3667.5,0.24546]
[1736130314446,3.84639696,3667.6,3667.4,0.24546]
[1736130315049,1.7088,3667.6,3667.4,0.24546]
[1736130315646,1.7088,3667.6,3667.5,0.24546]
[1736130315949,1.7088,3667.6,3667.4,0.24546]
[1736130316144,1.7088,3667.6,3667.1,1.8655]
[1736130316351,1.7088,3667.6,3667.5,0.24546]
[1736130317352,1.7088,3667.6,3667.2,3.2078]
[1736130317646,1.7088,3667.6,3667.4,0.24546]
[1736130318048,1.7088,3667.6,3666.9,1.7552]
[1736130318248,1.7088,3667.6,3666.9,0.24549]
[1736130318551,0.24547,3667.4,3667.1,0.24548]
[1736130318852,1.7088,3667.6,3666.7,2.17395445]
[1736130319042,0.24547,3667.4,3666.7,2.17395445]
[1736130319244,0.24547,3667.4,3667.0,0.24548]
[1736130319449,0.24547,3667.3,3667.0,0.24548]
[1736130319943,1.7088,3667.6,3666.7,2.17395445]
[1736130319944,3.2078,3667.1,3666.7,2.17395445]
[1736130320340,3.45329,3667.1,3666.8,0.2455]
[1736130322143,3.2078,3667.1,3666.8,0.2455]
[1736130322450,3.2078,3667.1,3666.7,2.17395445]
[1736130322651,3.2078,3667.1,3666.8,0.2455]
[1736130322848,3.2078,3667.1,3666.5,1.8937]
[1736130323053,3.2198,3667.0,3666.8,0.2455]
[1736130323353,3.2198,3667.0,3666.5,1.8937]
[1736130323650,3.2198,3667.0,3666.8,0.2455]
[1736130324454,3.2198,3667.0,3666.5,1.8937]
[1736130324649,3.2198,3667.0,3666.9,0.2455]
[1736130324851,3.84639696,3667.6,3666.8,3.2078]
[1736130325059,3.84639696,3667.6,3667.2,0.24548]
[1736130325247,4.09184696,3667.6,3667.2,0.24548]
[1736130325449,4.09184696,3667.6,3667.3,0.24547]
[1736130325650,1.95425,3667.6,3666.8,3.2078]
[1736130325850,1.95425,3667.6,3666.7,2.17395445]
[1736130325851,3.2078,3667.5,3666.7,2.17395445]
[1736130326155,0.24548,3667.2,3666.8,0.2455]
[1736130326355,1.6215,3667.1,3666.5,1.8937]
[1736130326656,0.24552,3666.6,3666.2,0.24554]
[1736130326952,1.5938,3666.5,3666.4,0.24553]
[1736130327442,1.84619,3667.0,3666.7,0.24551]
[1736130327647,3.43999,3667.0,3666.7,0.24551]
[1736130327951,0.2455,3666.9,3666.3,2.17395445]
[1736130328150,0.2455,3666.9,3666.6,0.24551]
[1736130328844,3.1945,3667.0,3666.9,0.2455]
[1736130331951,3.1945,3667.0,3666.7,1.6855]
[1736130332147,3.1945,3667.0,3666.9,0.2455]
[1736130335654,2.13759696,3667.2,3667.1,0.24548]
[1736130336561,2.13759696,3667.3,3667.2,0.24548]
[1736130338555,2.13759696,3667.3,3667.2,2.41943445]
[1736130338759,2.13759696,3667.4,3667.2,5.38175445]
[1736130338964,2.13759696,3667.4,3667.3,0.24547]
[1736130339161,2.13759696,3667.4,3667.3,1.92887]
[1736130339363,2.13759696,3667.4,3667.3,42.72887]
[1736130340554,3.68709696,3667.9,3667.8,0.24544]
[1736130340757,3.68709696,3667.9,3667.8,0.36653906]
[1736130341364,3.68709696,3667.9,3667.8,0.36650398]
[1736130342863,1.5495,3667.9,3667.8,0.36650398]
[1736130343861,2.13759696,3668.0,3667.9,0.24543]
[1736130344066,2.13759696,3668.0,3667.9,0.36649398]
[1736130344265,2.13759696,3668.0,3667.9,0.24543]
[1736130344569,2.13759696,3668.0,3667.9,0.36361932]
[1736130344964,2.13759696,3668.0,3667.9,0.36354987]
[1736130345165,2.13759696,3668.5,3667.9,0.11811987]
[1736130345368,2.13759696,3668.5,3668.4,0.2454]
[1736130345556,2.13759696,3668.5,3668.4,0.36351987]
[1736130345762,2.13759696,3668.5,3668.4,0.11811987]
[1736130346670,3.74489696,3668.6,3668.4,0.11811987]
[1736130346862,3.74489696,3668.6,3667.8,2.17395445]
[1736130346863,3.74489696,3668.6,3668.5,0.11811987]
[1736130347063,3.74489696,3668.6,3668.5,0.36350987]
[1736130347667,3.74489696,3668.6,3668.5,0.11811987]